Cogmind - Beta 13 @@@ ROGUE MODE // 2024.04.03 @ 18:15:01 Player: TheSecutor Result: Destroyed by G-47 Trooper with Particle Gun Performance ------------- Evolutions (2) 1000 Regions Visited (3) 600 Robots Destroyed (39) 195 Value Destroyed (1351) 1351 Prototype IDs (3) 60 Alien Tech Used (0) 0 Bonus (41) 41 TOTAL SCORE: 3247 Bonus ------- High Alert Combat Kills 41 Cogmind --------- Core Integrity 0/550 Matter 286/300 Energy 98/100 System Corruption 5% Temperature Cool (36) Movement Core (50) Location -8/Materials Parts ------- > --- POWER (2) -------- (None) > --- PROPULSION (2) --- (None) > --- UTILITY (4) ------ (None) > --- WEAPON (3) ------- (None) > --- INVENTORY (5) ---- (None) Peak State ------------ > --- POWER ------------ Nuclear Core Nuclear Core > --- PROPULSION ------- Aluminum Leg Aluminum Leg > --- UTILITY ---------- Improved Heat Sink Huge Storage Unit Compact Battery Sensor Array > --- WEAPON ----------- Small Laser Katana > --- INVENTORY -------- Ion Engine Light Deuterium Engine Nuclear Core Sensor Array Signal Interpreter Seismic Detector Hardened Medium Armor Plating Reflective Plating Hacking Suite Hacking Suite [Rating: 22] Favorites ----------- Power Nuclear Core Engine Improved Ion Engine Power Core Nuclear Core Propulsion Aluminum Leg Treads Light Treads Leg Aluminum Leg Wheel Wheel Utility Sensor Array Device Sensor Array Storage Large Storage Unit Processor Improved Signal Interpreter Weapon Particle Gun Energy Gun Particle Gun Ballistic Gun Heavy Assault Rifle Launcher Grenade Launcher Slashing Weapon Katana Build | -11 -10 -9 -8 ------- Run | Yrd Mat Mat Mat Slots Evolved 4 | . . 2 2 Power 1 | . . . 1 Propulsion . | . . . . Utility 2 | . . 1 1 Weapon 1 | . . 1 . Parts Attached 61 | 5 12 26 18 Power 10 | 1 1 3 5 Engine 6 | 1 . 3 2 Core 4 | . 1 . 3 Reactor . | . . . . Propulsion 16 | 2 3 6 5 Treads 4 | 2 1 . 1 Leg 11 | . 2 6 3 Wheel 1 | . . . 1 Hover . | . . . . Flight . | . . . . Utility 15 | 1 3 6 5 Device 9 | . 2 4 3 Storage 5 | 1 1 2 1 Processor 1 | . . . 1 Hackware . | . . . . Protection . | . . . . Artifact . | . . . . Weapon 20 | 1 5 11 3 Energy Gun 17 | 1 5 10 1 Energy Cannon . | . . . . Ballistic Gun 1 | . . . 1 Ballistic Cannon . | . . . . Launcher 1 | . . 1 . Special Weapon . | . . . . Impact Weapon . | . . . . Slashing Weapon 1 | . . . 1 Piercing Weapon . | . . . . Special Melee Weapon . | . . . . Unidentified Prototypes 1 | . 1 . . Parts Lost 25 | . 1 11 13 Power 4 | . 1 . 3 Propulsion 6 | . . 2 4 Utility 5 | . . 3 2 Weapon 10 | . . 6 4 Highest Loss Streak 6 | . 1 6 6 To Critical Strikes 1 | . . 1 . Average Slot Usage (%) 88 | . 97 92 82 Engine 7 | . 10 9 4 Core 6 | . 2 1 12 Treads 6 | . 27 . 1 Leg 13 | . . 20 13 Device 16 | . 12 18 17 Storage 14 | . 14 13 14 Energy Gun 17 | . 26 26 7 Ballistic Gun 1 | . . . 2 Launcher 1 | . . 1 3 Slashing Weapon 1 | . . . 2 Naked Turns 22 | . . . 22 Heaviest Build 100 | 12 33 38 100 Greatest Support 40 | 40 40 20 20 Greatest Overweight (x) 9 | . 1 3 9 Average Overweight (x) 1 | . . 1 2 Largest Inventory Capacity 25 | 8 15 15 25 Average Capacity 16 | 6 12 15 19 Most Carried 15 | 5 15 14 12 Average Carried 9 | 2 10 10 8 Final Capacity 15 | 8 15 15 5 Final Carried 15 | 3 15 7 . Class Distribution -------------------- 53% | Mutant 22% | Skirmisher 10% | Scavenger-Mutant 10% | Scavenger-Skirmisher Dominant Class ---------------- Mutant | -10/Materials Skirmisher | -9/Materials Mutant | -8/Materials Resources | -11 -10 -9 -8 ----------- Run | Yrd Mat Mat Mat Matter Collected 861 | 217 128 284 232 Remotely . | . . . . Salvage Created 1525 | . 266 904 355 Parts 81 | . 10 52 19 Haulers Intercepted . | . . . . Recyclers Shooed . | . . . . Parts Field Recycled . | . . . . Retrieved Matter . | . . . . Parts Self-Destructed . | . . . . Prevented . | . . . . Kills | -11 -10 -9 -8 ------- Run | Yrd Mat Mat Mat Combat Hostiles Destroyed 36 | . 5 24 7 Melee 3 | . . . 3 Guns 24 | . 4 16 4 AOE 6 | . . 6 . Classes Destroyed 8 | . 1 5 2 Recycler 1 | . . 1 . Watcher 2 | . . 1 1 Swarmer 6 | . . 6 . Grunt 20 | . 5 11 4 Brawler 1 | . . . 1 Duelist 1 | . . 1 . Sentry 7 | . . 6 1 Hunter 1 | . . . 1 Best Kill Streak 8 | . 2 8 2 Combat Bots Only 8 | . 2 8 2 Max Kills in Single Turn 2 | . 1 2 1 Gunslinging . | . . . . Exploded 2 | . . 2 . Melee 1 | . . . 1 Uniques/NPCs Destroyed . | . . . . Combat | -11 -10 -9 -8 -------- Run | Yrd Mat Mat Mat Hostile Shots Fired 306 | . 42 135 129 Missed 63 | . 17 19 27 Damage Taken 3546 | . 340 1515 1691 Core 937 | . 57 321 559 Absorbed by Shields . | . . . . Core Remaining (%) 65 | 100 77 19 . Volleys Fired 125 | . 19 73 33 Largest 3 | . 2 3 2 Hottest 195 | . 90 195 105 Shots Fired 239 | . 38 160 41 Gun 235 | . 38 156 41 Cannon . | . . . . Launcher 4 | . . 4 . Special . | . . . . Kinetic 18 | . . . 18 Thermal 160 | . . 137 23 Explosive 4 | . . 4 . Electromagnetic 57 | . 38 19 . Robot Hit Streak 10 | . 4 10 7 Robot Miss Streak 6 | . 6 5 2 Penetration Max . | . . . . Secondary Targets 3 | . 1 2 . Max Gunslinging Chain 1 | . 1 1 . Shots Hit Robots 157 | . 25 97 35 Core Hits 62 | . 11 36 15 Critical Kills . | . . . . Critical Parts Destroyed . | . . . . Critical Strikes 7 | . . 6 1 Burn 6 | . . 6 . Sever 1 | . . . 1 Melee Attacks 10 | . . . 10 Impact . | . . . . Slashing 10 | . . . 10 Piercing . | . . . . Sneak Attacks 1 | . . . 1 Combat Hostiles . | . . . . Follow-up Attacks . | . . . . Damage Inflicted 2979 | . 448 1859 672 Guns 2302 | . 448 1489 365 Cannons . | . . . . Explosions 359 | . . 359 . Melee 290 | . . . 290 Ramming 28 | . . 11 17 Kinetic 159 | . . . 159 Thermal 1682 | . . 1476 206 Explosive 227 | . . 227 . Electromagnetic 593 | . 448 145 . Impact . | . . . . Slashing 290 | . . . 290 Piercing . | . . . . Highest Corruption 5 | . . . 5 Average Corruption 5 | . . . 5 Corruption Purged . | . . . . Corruption Blocked . | . . . . Effects 11 | . . . 11 Message Errors 5 | . . . 5 Matter Fused 2 | . . . 2 Energy Discharges 1 | . . . 1 Parts Rejected 1 | . . . 1 Data Loss (minor) 2 | . . . 2 Overload Shots . | . . . . Overflow Damage 51 | . . . 51 Projectiles . | . . . . Explosions . | . . . . Melee 51 | . . . 51 Knockbacks . | . . . . Impact . | . . . . Kinetic . | . . . . Secondary . | . . . . Self-Inflicted Damage 61 | . . 61 . Shots 2 | . . 2 . Rammed . | . . . . Targets Rammed 4 | . . 1 3 Kicked 4 | . . 1 3 Crushed . | . . . . Highest Temperature 598 | . 170 598 204 Average Temperature 149 | . 57 167 108 Received Heat Transfer 1473 | . 189 435 849 Effects 14 | . . 14 . Shutdowns 3 | . . 3 . Energy Bleed 3 | . . 3 . Interference 5 | . . 5 . Matter Decay 1 | . . 1 . Short Circuit 2 | . . 2 . Siege Activations . | . . . . Robots Corrupted 1 | . 1 . . Combat Hostiles 1 | . 1 . . Parts Fried 3 | . 3 . . Impact Corruptions . | . . . . Robots Melted 2 | . . 2 . Combat Hostiles 2 | . . 2 . Parts Melted 9 | . . 8 1 Heat Transferred 4227 | . . 3767 460 Parts Sabotaged . | . . . . Parts Stolen . | . . . . Parts Stripped . | . . . . Power Chain Reactions 1 | . . 1 . Alert | -11 -10 -9 -8 ------- Run | Yrd Mat Mat Mat Peak Influence 551 | . 117 551 181 Initial 169 | . . 49 169 Average 119 | . 19 246 90 Maximum Alert Level 2 | . . 2 . Low Security (%) 80 | 100 100 36 100 Level 1 15 | . . 50 . Level 2 4 | . . 13 . Level 3 . | . . . . Level 4 . | . . . . Level 5 . | . . . . High Security . | . . . . Max Security . | . . . . Squads Dispatched 3 | . 1 1 1 Investigation 1 | . 1 . . Extermination . | . . . . Reinforcement 2 | . . 1 1 Assault . | . . . . Garrison . | . . . . Intercept . | . . . . Searches Triggered . | . . . . Construction Impeded 1 | . . 1 . Haulers Reinforced . | . . . . Active Scanning Responses . | . . . . Cargo Convoy Interrupts . | . . . . Stealth | -11 -10 -9 -8 --------- Run | Yrd Mat Mat Mat Distress Signals 9 | . . 5 4 Communications Jammed . | . . . . Distress Signals . | . . . . Times Spotted 64 | . 9 35 20 Peak Tracking Total 8 | . 2 6 8 Tactical Retreats 4 | . . 4 . Traps | -11 -10 -9 -8 ------- Run | Yrd Mat Mat Mat Traps Triggered 4 | . 4 . . Indirectly . | . . . . Trap Hack Attempts . | . . . . Triggered . | . . . . Disarmed . | . . . . Reprogrammed . | . . . . Reused . | . . . . Traps Extracted . | . . . . Installed . | . . . . Triggered . | . . . . Machines | -11 -10 -9 -8 ---------- Run | Yrd Mat Mat Mat Machines Disabled 2 | . 1 . 1 Max in Single Turn 1 | . 1 . 1 Machines Repaired . | . . . . Machines Dismantled . | . . . . Machines Sabotaged . | . . . . Overloaded Fab Kills . | . . . . Hacking | -11 -10 -9 -8 --------- Run | Yrd Mat Mat Mat Machines Accessed 6 | . 1 1 4 Terminals 5 | . 1 1 3 Fabricators . | . . . . Repair Stations . | . . . . Recycling Units . | . . . . Scanalyzers 1 | . . . 1 Garrison Access . | . . . . Total Hacks 18 | . 6 2 10 Successful 8 | . 4 1 3 Failed 10 | . 2 1 7 Catastrophic . | . . . . Database Lockouts . | . . . . Manual . | . . . . Terminals 16 | . 6 2 8 Fabricators . | . . . . Repair Stations . | . . . . Recycling Units . | . . . . Scanalyzers 2 | . . . 2 Garrison Access . | . . . . Terminal Hacks 6 | . 4 1 1 Record 3 | . 3 . . Prototype ID Bank 1 | . . 1 . Alert Level 2 | . 1 . 1 Fabricator Hacks . | . . . . Repair Station Hacks . | . . . . Recycling Unit Hacks . | . . . . Scanalyzer 2 | . . . 2 Insert Component 1 | . . . 1 Analyze 1 | . . . 1 Garrison Access Hacks . | . . . . Unauthorized Hacks . | . . . . Terminals . | . . . . Fabricators . | . . . . Repair Stations . | . . . . Recycling Units . | . . . . Scanalyzers . | . . . . Garrison Access . | . . . . Data Cores Recovered . | . . . . Used . | . . . . Hacking Detections 5 | . 1 1 3 Full Trace Events . | . . . . Feedback Events . | . . . . Feedback Blocked . | . . . . Robot Schematics Acquired . | . . . . Robots Built . | . . . . Authchips . | . . . . Time . | . . . . Total Robot Build Rating . | . . . . Part Schematics Acquired 1 | . . . 1 Parts Built . | . . . . Authchips . | . . . . Time . | . . . . Total Part Build Rating . | . . . . Parts Repaired . | . . . . Time . | . . . . Parts Recycled . | . . . . Recycled Matter . | . . . . Retrieved Matter . | . . . . Retrieved Components . | . . . . Parts Scanalyzed 1 | . . . 1 Part Schematics Acquired 1 | . . . 1 Parts Damaged . | . . . . Bothacking | -11 -10 -9 -8 ------------ Run | Yrd Mat Mat Mat Used RIF Installer . | . . . . Robots Hacked . | . . . . Non-combat . | . . . . Combat . | . . . . Robot Hacks Applied . | . . . . Relay Couplers Released . | . . . . Fabnet Peak Effective % . | . . . . Robots Rewired . | . . . . Allies Hacked . | . . . . Hacks Repelled . | . . . . Allies | -11 -10 -9 -8 -------- Run | Yrd Mat Mat Mat Total Allies . | . . . . Largest Group . | . . . . Highest-Rated Group . | . . . . Highest-Rated Ally . | . . . . Total Orders . | . . . . Ally Attacks . | . . . . Total Damage . | . . . . Kills . | . . . . Allies Corrupted . | . . . . Allies Melted . | . . . . Intel | -11 -10 -9 -8 ------- Run | Yrd Mat Mat Mat Robot Analysis Total . | . . . . Derelict Logs Recovered . | . . . . Drone Launches . | . . . . Drone Recoveries . | . . . . Exploration | -11 -10 -9 -8 ------------- Run | Yrd Mat Mat Mat Turns Passed 2759 | 73 595 831 1260 Spaces Moved 1023 | 44 313 289 377 Core 50 | 8 . . 42 Treads 374 | 36 303 . 35 Legs 599 | . 10 289 300 Wheels . | . . . . Hover . | . . . . Flight . | . . . . Fastest Speed 50 | 50 160 190 50 Average Speed 217 | 140 160 197 290 Slowest Speed 750 | 160 190 330 750 Overloaded Moves . | . . . . Propulsion Burnouts . | . . . . Robots Hopped . | . . . . Cave-ins Triggered . | . . . . Exploration Rate (%) 31 | 3 53 36 34 Regions Visited 3 Branch Regions . Pre-discovered Areas . | . . . . Known Exits Taken . | . . . . Unknown Exits Taken 3 | 1 1 1 . Scrap Searched . | . . . . Spaces Dug . | . . . . Terrain Destroyed 44 | . . 44 . Melee . | . . . . Projectile . | . . . . AOE 44 | . . 44 . Terrain Rammed . | . . . . Walls Destroyed . | . . . . Machines Disabled . | . . . . Actions | -11 -10 -9 -8 --------- Run | Yrd Mat Mat Mat Total 1319 | 56 364 410 489 Wait 13 | . 1 1 11 Move 1020 | 43 312 288 377 Hop . | . . . . Pick Up 54 | 8 16 11 19 Fast Attach 13 | . 7 4 2 Attach 31 | 5 1 15 10 Detach . | . . . . Swap 17 | . 4 7 6 Drop 32 | . 4 10 18 Fire 125 | . 19 73 33 Melee 10 | . . . 10 Ram . | . . . . Kick 4 | . . 1 3 Crush . | . . . . Escape Stasis . | . . . . Rewire . | . . . . Trap . | . . . . Miscellaneous . | . . . . Route ------- -11/Scrapyard -10/Materials -9/Materials -8/Materials History --------- Turn | Location | Event 5 | -11/Scrapyard | Discovered new exit (range 16) 74 | -11/Scrapyard | Entered Materials 315 | -10/Materials | Build established: Mutant 594 | -10/Materials | Discovered new exit (range 12) 669 | -10/Materials | Entered another Materials area 669 | -9/Materials | Evolved 2 slots: Utility x1, Weapon x1 874 | -9/Materials | Destroyed 7 combat bots 1403 | -9/Materials | Core integrity fell below 50% 1423 | -9/Materials | Core integrity fell below 20% 1453 | -9/Materials | Lost 6 parts (2n2u2w) 1466 | -9/Materials | Destroyed 8 combat bots 1475 | -9/Materials | Discovered new exit (range 9) 1500 | -9/Materials | Entered another Materials area 1500 | -8/Materials | Evolved 2 slots: Power x1, Utility x1 1993 | -8/Materials | Lost 3 parts (1n2w) 2690 | -8/Materials | Build established: Scavenger-Mutant 2714 | -8/Materials | Core integrity fell below 50% 2749 | -8/Materials | Core integrity fell below 20% 2760 | -8/Materials | Destroyed by G-47 Trooper with Particle Gun Last Messages --------------- Nuclear Core destroyed. R-06 Scavenger collects Sensor Array. Aluminum Leg destroyed. Discarded Imp. Signal Interpreter. Dropped Ion Engine. Dropped Signal Interpreter. Dropped Imp. Signal Interpreter. K-01 Serf collects debris. System corrupted: Component data lost. Dropped Hacking Suite. Dropped Sensor Array. R-06 Scavenger collects Signal Interpreter. K-01 Serf destroyed. R-06 Scavenger collects Sensor Array. K-01 Serf collects debris. K-01 Serf destroyed. K-01 Serf collects debris. Acquired Mace. Dropped Mace. Critical hit (Burn: +37). Map ----- +----------------------------------------------------+ | ???????????????????????????????????# ^^ | | ???????????????????????????????????# | | ???????????????????????????????????# ^^ | | ???????????????????????????????????# """ | | ???????????????????????????????????# """ ^ | | ???????????????????????????????????# """ | | ???????????????????????????????????# | | ????????????????????#??????????????# !! | | ????????????????????# ?????????????# "" ! | | ????????????????????# ????????????# """ !##### | | ????????????????????# ???###+###?# """ *#?# | | ????????????????????# ### ### !!#?# | | ????????????????????# =%= #?# | | ????????????????????+ k!* #?# | | ????????????????????# *% #?# | | ??????????????????????###### m####### #?### | | ???????????????????????????## w##?????#######???? | | ????????????????????????????# a #????????????????? | | ????????????##########??????# g #????????????????? | | ????????????# ######## #????????????????? | | ????????????# + Yg #????????????????? | | ????????????# # #????????????????? | | ????????????# # g #######+?????????? | | ????????????# # g ????????? | | ????????????# + ????????? | | ????????????#! #/ @ ????????? | | ????????????# #########+#########?????????? | | ????????????# #???????????????????????????? | | ????????????##########???????????????????????????? | | ?????????????????????????????????????????????????? | | ?????????????????????????????????????????????????? | | ?????????????????????????????????????????????????? | | ?????????????????????????????????????????????????? | | ?????????????????????????????????????????????????? | | ?????????????????????????????????????????????????? | | ?????????????????????????????????????????????????? | | | | | | | | | | | | | | | | | | | | | | | | | | | | | +----------------------------------------------------+ Best States ------------- Heat Dissipation 50 Energy Generation 23 Energy Capacity 615 Matter Stores 300 Matter Capacity 300 Sight Range 16 Robot Scan Range 14 Terrain Scan Density 10 Evasion (%) 50 Recoil Reduction 2 Item Schematics ----------------- Nuclear Core | -8/Materials | Scanalyzed Robot Schematics ------------------ None Fabricated ------------ Nothing Alien Tech Used ----------------- None Achievements -------------- Power Corrupts Challenges ------------ None Game ------ Seed AntimatterCryofiberBay Manual? 0 Play Time 00:26:23 Cumulative 3.4 hours Start 2024.04.03 @ 17:09:48 End 2024.04.03 @ 18:15:01 Sessions 3 Manual Loads 0 Difficulty Rogue Special Mode None Game No. 11 Rogue 11 Adventurer 0 Explorer 0 Win Type - Total 0 Types 0/0/0/0/0/0/0/0/0 Lore% 1 Gallery% 10 Achievement% 8 Wizard Run 0 Options --------- Layout 1 ASCII 0 Keyboard 0 Movement Mouse Keybinds 0 Fullscreen 1 Font 24/Smallcaps Map View 50x35 Zoom Use 0% Tactical HUD 0 Map Filters NONE Filters NONE Steam 1 RUN: 918556f1-377f-46d3-80d8-c5c4fd66478e